fUSD/lending_fUSD_20240217
["ID","MTS","AMOUNT","RATE_DAILY","PERIOD"]
[314272748,1708139447066,-7419.0,0.00043316,2]
[314272749,1708139447075,-2290.0,0.00043316,2]
[314272750,1708139447085,-2928.0,0.00043316,2]
[314272751,1708139447094,-1037.0,0.00043316,2]
[314272752,1708139447103,-1000.0,0.00043363,4]
[314272753,1708139447112,-1618.58,0.00043412,2]
[314272754,1708139447121,-3127.52225059,0.00043426,5]
[314272755,1708139447130,-482.10180201,0.00043481,60]
[314272756,1708139447139,-162.0,0.00043488,7]
[314272757,1708139447148,-1308.35,0.00043561,7]
[314272758,1708139447157,-478.71,0.00043677,2]
[314272759,1708139447166,-506.29499783,0.00043835,3]
[314272760,1708139447176,-12781.17418119,0.00043955,6]
[314272761,1708139447185,-3886.7681943,0.00044,2]
[314272762,1708139447194,-250.0,0.00044,30]
[314272763,1708139447203,-625.26765117,0.00044,4]
[314272764,1708139447212,-162.0,0.00044036,7]
[314272765,1708139447221,-22688.5956893,0.00044091,2]
[314272766,1708139447229,-200.0,0.00044113,2]
[314272767,1708139447238,-206.0,0.00044155,23]
[314272768,1708139447247,-154.05,0.000443,5]
[314272769,1708139447256,-154.05,0.000443,5]
[314272770,1708139447266,-154.05,0.000443,5]
[314272771,1708139447275,-154.05,0.000443,5]
[314272772,1708139447284,-154.05,0.000443,5]
[314272773,1708139447293,-154.05,0.000443,5]
[314272774,1708139447302,-154.05,0.000443,5]
[314272775,1708139447311,-1635.4375,0.00044383,7]
[314272776,1708139447320,-158.23203844,0.00044384,30]
[314272777,1708139447330,-151.0,0.00044431,2]
[314272778,1708139447339,-250.49088,0.00044431,2]
[314272779,1708139447348,-162.0,0.00044584,7]
[314272780,1708139447357,-1098.96,0.00044682,2]
[314272781,1708139447366,-1202.0,0.000449,30]
[314272782,1708139447375,-28689.40793652,0.00045,10]
[314272783,1708139447385,-155.0,0.00045,7]
[314272784,1708139447394,-11974.85020881,0.00045,3]
[314272785,1708139447403,-198.40170871,0.00045,2]
[314272786,1708139447412,-4833.78305591,0.00045,17]
[314272787,1708139447421,-3127.52225059,0.00045005,5]
[314272788,1708139447430,-150.0,0.00045037,2]
[314272789,1708139447438,-150.0,0.00045037,2]
[314272790,1708139447448,-150.0,0.00045037,2]
[314272791,1708139447457,-150.0,0.00045037,2]
[314272792,1708139447466,-150.0,0.00045037,2]
[314272793,1708139447475,-150.0,0.00045037,2]
[314272794,1708139447484,-150.0,0.00045037,2]
[314272795,1708139447493,-607.374,0.00045037,2]
[314272796,1708139447502,-2836.0,0.00045037,2]
[314272797,1708139447511,-842.0,0.00045037,2]
[314272798,1708139447521,-708.0,0.00045037,2]
[314272799,1708139447530,-953.0,0.00045037,2]
[314272800,1708139447539,-599.0,0.00045037,2]
[314272801,1708139447548,-216.0,0.00045037,2]
[314272802,1708139447557,-1255.0,0.00045037,2]
[314272803,1708139447566,-1231.0,0.00045037,2]
[314272804,1708139447575,-1949.0,0.00045037,2]
[314272805,1708139447584,-858.0,0.00045037,2]
[314272806,1708139447593,-1005.0,0.00045037,2]
[314272807,1708139447602,-237.0,0.00045037,2]
[314272808,1708139447611,-429.0,0.00045037,2]
[314272809,1708139447620,-343.0,0.00045037,2]
[314272810,1708139447629,-232.494,0.00045037,2]
[314272811,1708139447638,-321.0,0.00045037,2]
[314272812,1708139447647,-2871.0,0.00045037,2]
[314272813,1708139447656,-500.0,0.00045125,2]
[314272814,1708139447665,-500.0,0.00045125,2]
[314272815,1708139447674,-500.0,0.00045125,2]
[314272816,1708139447683,-500.0,0.00045125,2]
[314272817,1708139447692,-500.0,0.00045125,2]
[314272818,1708139447701,-500.0,0.00045125,2]
[314272819,1708139447710,-500.0,0.00045125,2]
[314272820,1708139447719,-500.0,0.00045125,2]
[314272821,1708139447728,-500.0,0.00045125,2]
[314272822,1708139447736,-500.0,0.00045125,2]
[314272823,1708139447745,-500.0,0.00045125,2]
[314272824,1708139447756,-500.0,0.00045125,2]
[314272825,1708139447765,-500.0,0.00045125,2]
[314272826,1708139447774,-500.0,0.00045125,2]
[314272827,1708139447783,-500.0,0.00045125,2]
[314272828,1708139447792,-500.0,0.00045125,2]
[314272829,1708139447801,-500.0,0.00045125,2]
[314272830,1708139447810,-500.0,0.00045125,2]
[314272831,1708139447819,-500.0,0.00045125,2]
[314272832,1708139447828,-500.0,0.00045125,2]
[314272833,1708139447837,-500.0,0.00045125,2]
[314272834,1708139447846,-500.0,0.00045125,2]
[314272835,1708139447855,-500.0,0.00045125,2]
[314272836,1708139447864,-500.0,0.00045125,2]
[314272837,1708139447873,-500.0,0.00045125,2]
[314272838,1708139447882,-500.0,0.00045125,2]
[314272839,1708139447891,-500.0,0.00045125,2]
[314272840,1708139447901,-500.0,0.00045125,2]
[314272841,1708139447910,-500.0,0.00045125,2]
[314272842,1708139447920,-500.0,0.00045125,2]
[314272843,1708139447934,-500.0,0.00045125,2]
[314272844,1708139447943,-500.0,0.00045125,2]
[314272845,1708139447952,-500.0,0.00045125,2]
[314272846,1708139447961,-500.0,0.00045125,2]
[314272847,1708139447971,-500.0,0.00045125,2]
[314272848,1708139447980,-500.0,0.00045125,2]
[314272849,1708139447989,-500.0,0.00045125,2]
[314272850,1708139447999,-500.0,0.00045125,2]
[314272851,1708139448009,-500.0,0.00045125,2]
[314272852,1708139448018,-500.0,0.00045125,2]
[314272853,1708139448027,-500.0,0.00045125,2]
[314272854,1708139448037,-500.0,0.00045125,2]
[314272855,1708139448046,-500.0,0.00045125,2]
[314272856,1708139448055,-500.0,0.00045125,2]
[314272857,1708139448063,-500.0,0.00045125,2]
[314272858,1708139448072,-500.0,0.00045125,2]
[314272859,1708139448081,-500.0,0.00045125,2]
[314272860,1708139448091,-500.0,0.00045125,2]
[314272861,1708139448100,-500.0,0.00045125,2]
[314272862,1708139448109,-500.0,0.00045125,2]
[314272863,1708139448118,-500.0,0.00045125,2]
[314272864,1708139448127,-500.0,0.00045125,2]
[314272865,1708139448137,-500.0,0.00045125,2]
[314272866,1708139448146,-500.0,0.00045125,2]
[314272867,1708139448155,-500.0,0.00045125,2]
[314272868,1708139448165,-500.0,0.00045125,2]
[314272869,1708139448174,-500.0,0.00045125,2]
[314272870,1708139448183,-500.0,0.00045125,2]
[314272871,1708139448192,-500.0,0.00045125,2]
[314272872,1708139448201,-500.0,0.00045125,2]
[314272873,1708139448209,-500.0,0.00045125,2]
[314272874,1708139448218,-500.0,0.00045125,2]
[314272875,1708139448227,-500.0,0.00045125,2]
[314272876,1708139448237,-500.0,0.00045125,2]
[314272877,1708139448246,-500.0,0.00045125,2]
[314272878,1708139448257,-500.0,0.00045125,2]
[314272879,1708139448267,-500.0,0.00045125,2]
[314272880,1708139448276,-500.0,0.00045125,2]
[314272881,1708139448285,-500.0,0.00045125,2]
[314272882,1708139448296,-19999.99,0.00045125,2]
[314272883,1708139448305,-14288.5,0.00045125,2]
[314272884,1708139448314,-162.0,0.00045132,7]
[314272885,1708139448323,-201.8018,0.0004514,30]
[314272886,1708139448332,-478.71,0.00045149,2]
[314272887,1708139448341,-302.0,0.00045178,4]
[314272888,1708139448351,-1962.525,0.00045205,7]
[314272889,1708139448359,-175.21,0.00045205,2]
[314272890,1708139448368,-500.0,0.00045282,2]
[314272891,1708139448378,-500.0,0.00045282,2]
[314272892,1708139448387,-500.0,0.00045282,2]
[314272893,1708139448396,-500.0,0.00045282,2]
[314272894,1708139448405,-500.0,0.00045282,2]
[314272895,1708139448414,-153.89569785,0.00045338,26]
[314272896,1708139448423,-1000.0,0.00045576,4]
[314272897,1708139448431,-162.0,0.00045679,30]
[314272898,1708139448441,-1000.0,0.000458,2]
[314272899,1708139448450,-719.27,0.00045828,15]
[314272900,1708139448459,-604.0,0.00045937,7]
[314272901,1708139448468,-244.23,0.00045999,2]
[314272902,1708139448477,-500.0,0.00046,7]
[314272903,1708139448486,-17000.0,0.00046,5]
[314272904,1708139448495,-207.0,0.00046,3]
[314272905,1708139448506,-2289.6125,0.00046027,7]
[314272906,1708139448515,-152.74,0.00046027,2]
[314272907,1708139448524,-151.021788,0.00046148,47]
[314272908,1708139448533,-162.0,0.00046227,30]
[314272909,1708139448542,-19853.0,0.00046316,2]
[314272910,1708139448551,-8166.0,0.00046316,2]
[314272911,1708139448561,-7419.0,0.00046316,2]
[314272912,1708139448569,-2290.0,0.00046316,2]
[314272913,1708139448579,-2928.0,0.00046316,2]
[314272914,1708139448588,-1037.0,0.00046316,2]
[314272915,1708139448597,-158.23203844,0.00046344,30]
[314272916,1708139448606,-206.0,0.00046418,28]
[314272917,1708139448615,-151.021788,0.00046448,47]
[314272918,1708139448624,-3127.52225059,0.00046584,5]
[314272919,1708139448633,-1880.56369068,0.000466,2]
[314272920,1708139448642,-1505.5599939,0.000466,2]
[314272921,1708139448651,-367.7537532,0.00046665,15]
[314272922,1708139448660,-1898.0,0.000467,115]
[314272923,1708139448670,-166.99392,0.00046709,4]
[314272924,1708139448679,-162.0,0.00046775,30]
[314272925,1708139448688,-236.71165668,0.00046781,7]
[314272926,1708139448697,-200.0,0.000468,30]
[314272927,1708139448706,-2616.7,0.00046849,7]
[314272928,1708139448715,-2893.46,0.00046849,120]
[314272929,1708139448724,-1098.96,0.00046946,2]
[314272930,1708139448733,-158.23203844,0.00046975,30]
[314272931,1708139448742,-214.72550425,0.00046983,6]
[314272932,1708139448752,-254.45312673,0.00046983,6]
[314272933,1708139448761,-417.15,0.00046986,2]
[314272934,1708139448771,-941.53,0.00046986,2]
[314272935,1708139448780,-915.62,0.00046986,2]
[314272936,1708139448789,-405.38,0.00046986,2]
[314272937,1708139448802,-915.62,0.00046986,2]
[314272938,1708139448811,-405.38,0.00046986,2]
[314272939,1708139448820,-915.62,0.00046986,2]
[314272940,1708139448829,-915.62,0.00046986,2]
[314272941,1708139448838,-405.38,0.00046986,2]
[314272942,1708139448960,-405.38,0.00046986,2]
[314272943,1708139448971,-915.62,0.00046986,2]
[314272944,1708139448980,-907.5,0.00046986,2]
[314272945,1708139448989,-405.38,0.00046986,2]
[314272946,1708139448999,-405.38,0.00046986,2]
[314272947,1708139449010,-405.38,0.00046986,2]
[314272948,1708139449019,-400.61,0.00046986,2]
[314272949,1708139449028,-417.9204722,0.00047,5]
[314272950,1708139449041,-207.0,0.00047,4]
[314272951,1708139449050,-154.05,0.00047,5]
[314272952,1708139449059,-154.05,0.00047,5]
[314272953,1708139449069,-154.05,0.00047,5]
[314272954,1708139449078,-154.05,0.00047,5]
[314272955,1708139449088,-154.05,0.00047,5]
[314272956,1708139449097,-154.05,0.00047,5]
[314272957,1708139449107,-154.05,0.00047,5]
[314272958,1708139449116,-4000.0,0.00047,2]
[314272959,1708139449125,-12781.17418119,0.00047028,8]
[314272960,1708139449134,-1208.0,0.000471,30]
[314272961,1708139449144,-151.021788,0.00047148,46]
[314272962,1708139449153,-181.0,0.00047323,30]
[314272963,1708139449162,-256.39219793,0.00047334,7]
[314272964,1708139449171,-761.49203754,0.00047334,7]
[314272965,1708139449180,-253.55617152,0.00047334,4]
[314272966,1708139449189,-240.3778657,0.00047334,7]
[314272967,1708139449198,-186.67576753,0.00047334,3]
[314272968,1708139449207,-250.0,0.00047334,7]
[314272969,1708139449216,-2032.44391962,0.00047371,7]
[314272970,1708139449226,-152.0,0.00047388,3]
[314272971,1708139449235,-605.97264135,0.0004741,6]
[314272972,1708139449245,-151.021788,0.00047448,47]
[314272973,1708139449254,-289.3053774,0.00047492,2]
[314272974,1708139449263,-153.89569785,0.00047581,35]
[314272975,1708139449272,-367.7537532,0.00047665,17]
[314272976,1708139449281,-2943.7875,0.00047671,7]
[314272977,1708139449290,-1979.0148927,0.00047728,2]
[314272978,1708139449299,-61277.9784314,0.00047728,2]
[314272979,1708139449311,-407.09584175,0.00047788,4]
[314272980,1708139449320,-181.0,0.00047871,30]
[314272981,1708139449329,-72088.08920102,0.000479,2]
[314272982,1708139449338,-810.18,0.00047945,2]
[314272983,1708139449347,-600.0,0.00048,20]
[314272984,1708139449356,-12138.95752183,0.00048,30]
[314272985,1708139449365,-279.4358008,0.00048,38]
[314272986,1708139449374,-207.0,0.00048,5]
[314272987,1708139449384,-3485.6830485,0.00048004,2]
[314272988,1708139449393,-150.0,0.00048037,2]
[314272989,1708139449402,-150.0,0.00048037,2]
[314272990,1708139449411,-150.0,0.00048037,2]
[314272991,1708139449420,-150.0,0.00048037,2]
[314272992,1708139449430,-150.0,0.00048037,2]
[314272993,1708139449439,-150.0,0.00048037,2]
[314272994,1708139449448,-2836.0,0.00048037,2]
[314272995,1708139449458,-842.0,0.00048037,2]
[314272996,1708139449467,-953.0,0.00048037,2]
[314272997,1708139449477,-152.177,0.00048037,2]
[314272998,1708139449486,-1255.0,0.00048037,2]
[314272999,1708139449495,-1231.0,0.00048037,2]
[314273000,1708139449505,-1949.0,0.00048037,2]
[314273001,1708139449514,-858.0,0.00048037,2]
[314273002,1708139449524,-1005.0,0.00048037,2]
[314273003,1708139449533,-237.0,0.00048037,2]
[314273004,1708139449542,-429.0,0.00048037,2]
[314273005,1708139449551,-343.0,0.00048037,2]
[314273006,1708139449561,-321.0,0.00048037,2]
[314273007,1708139449570,-2871.0,0.00048037,2]
[314273008,1708139449579,-200.0,0.00048123,2]
[314273009,1708139449589,-151.021788,0.00048148,52]
[314273010,1708139449598,-3127.52225059,0.00048163,5]
[314273011,1708139449608,-432.0,0.00048325,30]
[314273012,1708139449617,-2946.47828094,0.0004839,2]
[314273013,1708139449627,-19091.63634988,0.00048402,18]
[314273014,1708139449637,-181.0,0.00048419,30]
[314273015,1708139449647,-151.021788,0.00048448,51]
[314273016,1708139449658,-30170.2871783,0.0004849,2]
[314273017,1708139449668,-3270.875,0.00048493,7]
[314273018,1708139449679,-1000.0,0.000485,2]
[314273019,1708139449694,-174.472826,0.00048591,30]
[314273020,1708139449705,-196.409247,0.00048591,30]
[314273021,1708139449716,-293.733399,0.00048591,30]
[314273022,1708139449726,-150.0,0.00048591,30]
[314273023,1708139449737,-171.0,0.00048645,2]
[314273024,1708139449748,-367.7537532,0.00048665,19]
[314273025,1708139449759,-206.0,0.00048682,33]
[314273026,1708139449769,-27317.32605901,0.000487,120]
[314273027,1708139449779,-472.31,0.0004877,30]
[314273028,1708139449788,-432.0,0.00048824,30]
[314273029,1708139449798,-1159701.8278411,0.0004888,10]
[314273030,1708139449807,-7500.0,0.0004888,30]
[314273031,1708139449816,-183.59457966,0.00048967,120]
[314273032,1708139449825,-181.0,0.00048967,30]
[314273033,1708139449834,-313.95855664,0.00049,39]
[314273034,1708139449844,-630000.0,0.00049,120]
[314273035,1708139449853,-1000.0,0.00049,2]
[314273036,1708139449862,-10000.0,0.00049,120]
[314273037,1708139449871,-10000.0,0.00049,120]
[314273038,1708139449880,-207.0,0.00049,6]
[314273039,1708139449890,-5000.0,0.00049135,5]
[314273040,1708139449899,-151.021788,0.00049148,52]
[314273041,1708139449908,-196.409247,0.00049199,30]
[314273042,1708139449918,-1000.0,0.000492,25]
[314273043,1708139449928,-1098.96,0.0004921,2]
[314273044,1708139449939,-5032.637824,0.000493,2]
[314273045,1708139449948,-500.0,0.00049315,30]
[314273046,1708139449957,-1005.42496678,0.00049315,2]
[314273047,1708139449967,-739.89,0.00049315,60]
[314273048,1708139449976,-1000.7444072,0.00049315,2]
[314273049,1708139449985,-500.0,0.00049315,60]
[314273050,1708139449994,-532.94619241,0.00049315,60]
[314273051,1708139450003,-500.0,0.00049315,60]
[314273052,1708139450012,-515.44997744,0.00049315,60]
[314273053,1708139450022,-531.10718226,0.00049315,60]
[314273054,1708139450032,-517.58227991,0.00049315,60]
[314273055,1708139450041,-500.0,0.00049315,60]
[314273056,1708139450050,-500.0,0.00049315,2]
[314273057,1708139450059,-500.0,0.00049315,60]
[314273058,1708139450068,-503.07614817,0.00049315,60]
[314273059,1708139450078,-494.2555993,0.00049315,60]
[314273060,1708139450087,-500.0,0.00049315,30]
[314273061,1708139450096,-500.0,0.00049315,2]
[314273062,1708139450106,-532.99110301,0.00049315,60]
[314273063,1708139450115,-526.781292,0.00049315,60]
[314273064,1708139450125,-534.66889325,0.00049315,60]
[314273065,1708139450146,-524.56234278,0.00049315,60]
[314273066,1708139450155,-530.31688887,0.00049315,60]
[314273067,1708139450165,-536.86482471,0.00049315,60]
[314273068,1708139450175,-500.0,0.00049315,60]
[314273069,1708139450184,-502.71281984,0.00049315,60]
[314273070,1708139450194,-536.73753223,0.00049315,60]
[314273071,1708139450203,-510.70103441,0.00049315,60]
[314273072,1708139450212,-510.55731729,0.00049315,60]
[314273073,1708139450221,-503.22170731,0.00049315,60]
[314273074,1708139450231,-503.16608839,0.00049315,60]
[314273075,1708139450240,-508.38441291,0.00049315,60]
[314273076,1708139450249,-500.0,0.00049315,60]
[314273077,1708139450259,-500.0,0.00049315,60]
[314273078,1708139450269,-160.05272854,0.00049315,60]
[314273079,1708139450278,-535.17679837,0.00049315,60]
[314273080,1708139450287,-500.0,0.00049315,2]
[314273081,1708139450296,-500.0,0.00049315,60]
[314273082,1708139450307,-502.21977717,0.00049315,2]
[314273083,1708139450316,-500.0,0.00049315,60]
[314273084,1708139450325,-500.0,0.00049315,60]
[314273085,1708139450335,-405.46857021,0.00049315,60]
[314273086,1708139450345,-500.0,0.00049315,60]
[314273087,1708139450354,-500.0,0.00049315,60]
[314273088,1708139450363,-550.43784507,0.00049315,60]
[314273089,1708139450372,-563.18059403,0.00049315,60]
[314273090,1708139450382,-500.0,0.00049315,2]
[314273091,1708139450391,-500.0,0.00049315,60]
[314273092,1708139450400,-552.80298346,0.00049315,60]
[314273093,1708139450409,-500.0,0.00049315,60]
[314273094,1708139450418,-500.0,0.00049315,60]
[314273095,1708139450427,-541.85888393,0.00049315,60]
[314273096,1708139450437,-541.96788447,0.00049315,60]
[314273097,1708139450446,-500.0,0.00049315,60]
[314273098,1708139450455,-503.48986001,0.00049315,60]
[314273099,1708139450464,-500.0,0.00049315,60]
[314273100,1708139450473,-500.0,0.00049315,60]
[314273101,1708139450483,-500.0,0.00049315,60]
[314273102,1708139450492,-297.25573391,0.00049315,60]
[314273103,1708139450502,-500.0,0.00049315,60]
[314273104,1708139450511,-500.0,0.00049315,60]
[314273105,1708139450520,-300.95615346,0.00049315,60]
[314273106,1708139450530,-308.59535877,0.00049315,60]
[314273107,1708139450539,-500.0,0.00049315,60]
[314273108,1708139450548,-486.99638764,0.00049315,60]
[314273109,1708139450558,-500.0,0.00049315,60]
[314273110,1708139450567,-615.82,0.00049315,60]
[314273111,1708139450576,-500.0,0.00049315,60]
[314273112,1708139450586,-500.0,0.00049315,60]
[314273113,1708139450595,-500.0,0.00049315,60]
[314273114,1708139450604,-500.0,0.00049315,2]
[314273115,1708139450614,-500.0,0.00049315,60]
[314273116,1708139450623,-157.32709944,0.00049315,7]
[314273117,1708139450633,-500.0,0.00049315,60]
[314273118,1708139450642,-500.0,0.00049315,60]
[314273119,1708139450651,-500.0,0.00049315,60]
[314273120,1708139450661,-500.0,0.00049315,60]
[314273121,1708139450670,-392.36,0.00049315,60]
[314273122,1708139450680,-269.40639238,0.00049315,120]
[314273123,1708139450689,-521.38,0.00049315,2]
[314273124,1708139450699,-500.0,0.00049315,60]
[314273125,1708139450708,-500.0,0.00049315,60]
[314273126,1708139450718,-500.0,0.00049315,60]
[314273127,1708139450727,-526.92,0.00049315,60]
[314273128,1708139450736,-500.0,0.00049315,60]
[314273129,1708139450745,-548.30218861,0.00049315,60]
[314273130,1708139450755,-593.26721663,0.00049315,60]
[314273131,1708139450764,-500.0,0.00049315,60]
[314273132,1708139450774,-500.0,0.00049315,60]
[314273133,1708139450784,-313.49798344,0.00049315,60]
[314273134,1708139450793,-500.0,0.00049315,60]
[314273135,1708139450803,-500.0,0.00049315,60]
[314273136,1708139450812,-500.0,0.00049315,60]
[314273137,1708139450824,-500.0,0.00049315,60]
[314273138,1708139450833,-500.0,0.00049315,60]
[314273139,1708139450983,-500.0,0.00049315,60]
[314273140,1708139450993,-500.0,0.00049315,60]
[314273141,1708139451002,-500.0,0.00049315,60]
[314273142,1708139451012,-500.0,0.00049315,60]
[314273143,1708139451022,-500.0,0.00049315,60]
[314273144,1708139451031,-500.0,0.00049315,60]
[314273145,1708139451040,-500.0,0.00049315,60]
[314273146,1708139451050,-566.42358745,0.00049315,60]
[314273147,1708139451059,-524.89362049,0.00049315,60]
[314273148,1708139451069,-1162.21,0.00049315,60]
[314273149,1708139451078,-500.0,0.00049315,60]
[314273150,1708139451088,-563.85088684,0.00049315,60]
[314273151,1708139451098,-555.44200631,0.00049315,60]
[314273152,1708139451107,-500.0,0.00049315,60]
[314273153,1708139451116,-530.46648344,0.00049315,60]
[314273154,1708139451125,-500.0,0.00049315,60]
[314273155,1708139451134,-500.0,0.00049315,60]
[314273156,1708139451144,-524.41389706,0.00049315,60]
[314273157,1708139451153,-500.0,0.00049315,60]
[314273158,1708139451162,-500.0,0.00049315,60]
[314273159,1708139451171,-500.0,0.00049315,60]
[314273160,1708139451180,-500.0,0.00049315,60]
[314273161,1708139451189,-500.0,0.00049315,60]
[314273162,1708139451198,-358.42557405,0.00049315,60]
[314273163,1708139451208,-500.0,0.00049315,2]
[314273164,1708139451216,-441.49723271,0.00049315,60]
[314273165,1708139451225,-568.11386735,0.00049315,60]
[314273166,1708139451234,-500.0,0.00049315,60]
[314273167,1708139451243,-500.0,0.00049315,60]
[314273168,1708139451252,-575.34,0.00049315,60]
[314273169,1708139451262,-393.12415034,0.00049315,60]
[314273170,1708139451271,-150.0,0.00049315,60]
[314273171,1708139451280,-500.0,0.00049315,60]
[314273172,1708139451289,-500.0,0.00049315,60]
[314273173,1708139451298,-500.0,0.00049315,60]
[314273174,1708139451310,-500.0,0.00049315,60]
[314273175,1708139451319,-500.0,0.00049315,60]
[314273176,1708139451328,-642.69094484,0.00049315,60]
[314273177,1708139451337,-500.0,0.00049315,60]
[314273178,1708139451346,-1393.94,0.00049315,60]
[314273179,1708139451356,-500.0,0.00049315,60]
[314273180,1708139451365,-3597.9625,0.00049315,7]
[314273181,1708139451374,-335.12938761,0.00049315,60]
[314273182,1708139451384,-500.0,0.00049315,60]
[314273183,1708139451393,-500.0,0.00049315,60]
[314273184,1708139451402,-500.0,0.00049315,60]
[314273185,1708139451412,-500.0,0.00049315,60]
[314273186,1708139451421,-500.0,0.00049315,60]
[314273187,1708139451430,-500.0,0.00049315,60]
[314273188,1708139451440,-500.0,0.00049315,60]
[314273189,1708139451449,-500.0,0.00049315,60]
[314273190,1708139451459,-500.0,0.00049315,60]
[314273191,1708139451468,-500.0,0.00049315,60]
[314273192,1708139451477,-500.0,0.00049315,2]
[314273193,1708139451487,-500.0,0.00049315,60]
[314273194,1708139451496,-500.0,0.00049315,60]
[314273195,1708139451506,-500.0,0.00049315,60]
[314273196,1708139451515,-500.0,0.00049315,60]
[314273197,1708139451524,-500.0,0.00049315,60]
[314273198,1708139451534,-502.45080842,0.00049315,60]
[314273199,1708139451543,-500.0,0.00049315,60]
[314273200,1708139451553,-500.0,0.00049315,60]
[314273201,1708139451562,-500.0,0.00049315,60]
[314273202,1708139451571,-500.0,0.00049315,60]
[314273203,1708139451581,-500.0,0.00049315,60]
[314273204,1708139451591,-1028.76,0.00049315,2]
[314273205,1708139451600,-500.0,0.00049315,60]
[314273206,1708139451610,-500.0,0.00049315,60]
[314273207,1708139451619,-500.0,0.00049315,60]
[314273208,1708139451629,-500.0,0.00049315,60]
[314273209,1708139451638,-500.0,0.00049315,60]
[314273210,1708139451648,-500.0,0.00049315,60]
[314273211,1708139451657,-500.0,0.00049315,60]
[314273212,1708139451667,-500.0,0.00049315,7]
[314273213,1708139451676,-500.0,0.00049315,60]
[314273214,1708139451686,-527.02637147,0.00049315,60]
[314273215,1708139451695,-500.0,0.00049315,60]
[314273216,1708139451704,-531.51104237,0.00049315,60]
[314273217,1708139451713,-548.65410803,0.00049315,60]
[314273218,1708139451722,-500.0,0.00049315,60]
[314273219,1708139451731,-521.18448768,0.00049315,60]
[314273220,1708139451740,-500.0,0.00049315,60]
[314273221,1708139451750,-500.0,0.00049315,60]
[314273222,1708139451759,-500.0,0.00049315,60]
[314273223,1708139451768,-500.0,0.00049315,60]
[314273224,1708139451778,-559.60669253,0.00049315,60]
[314273225,1708139451787,-500.0,0.00049315,60]
[314273226,1708139451797,-500.0,0.00049315,60]
[314273227,1708139451806,-612.2897952,0.00049315,60]
[314273228,1708139451816,-500.0,0.00049315,60]
[314273229,1708139451825,-500.0,0.00049315,60]
[314273230,1708139451835,-500.0,0.00049315,60]
[314273231,1708139451847,-500.0,0.00049315,60]
[314273232,1708139451856,-522.39098309,0.00049315,60]
[314273233,1708139451866,-531.34230761,0.00049315,60]
[314273234,1708139451875,-302.05426186,0.00049315,60]
[314273235,1708139451885,-500.0,0.00049315,60]
[314273236,1708139451895,-500.0,0.00049315,60]
[314273237,1708139451905,-657.81,0.00049315,60]
[314273238,1708139451914,-535.28667173,0.00049315,60]
[314273239,1708139451924,-500.0,0.00049315,60]
[314273240,1708139451937,-500.0,0.00049315,60]
[314273241,1708139451947,-519.69891865,0.00049315,7]
[314273242,1708139451956,-536.61838355,0.00049315,60]
[314273243,1708139451966,-500.0,0.00049315,60]
[314273244,1708139451975,-507.39890145,0.00049315,60]
[314273245,1708139451985,-500.0,0.00049315,60]
[314273246,1708139451994,-525.13269746,0.00049315,60]
[314273247,1708139452005,-500.0,0.00049315,60]